[Event "Titled Tuesday Blitz April 12 Early 2022"]
[White "Rustemov, Alexander"]
[Black "Wagner, Dinara"]
[WhiteFideId "4119002"]
[BlackFideId "24157570"]
[WhiteElo "2817"]
[BlackElo "2216"]
[Result "0-1"]
[Round "05"]
[TimeControl "180+1"]
[Date "2022.04.13"]
[WhiteClock "0:00:01"]
[BlackClock "0:00:03"]

1. d4 {[%clk 0:03:00]}  Nf6 {[%clk 0:02:48]} 2. c4 {[%clk 0:03:00]}  e6 {[%clk 0:02:48]} 3. Nf3 {[%clk 0:03:00]}  d5 {[%clk 0:02:48]} 4. Nc3 {[%clk 0:02:59]}  dxc4 {[%clk 0:02:48]} 5. e4 {[%clk 0:02:56]}  Bb4 {[%clk 0:02:47]} 6. Bg5 {[%clk 0:02:55]}  h6 {[%clk 0:02:45]} 7. Bxf6 {[%clk 0:02:55]}  Qxf6 {[%clk 0:02:45]} 8. Bxc4 {[%clk 0:02:55]}  c5 {[%clk 0:02:45]} 9. O-O {[%clk 0:02:54]}  cxd4 {[%clk 0:02:44]} 10. e5 {[%clk 0:02:54]}  Qd8 {[%clk 0:02:45]} 11. Ne4 {[%clk 0:02:53]}  Nc6 {[%clk 0:02:37]} 12. Qe2 {[%clk 0:02:52]}  a6 {[%clk 0:02:35]} 13. Rfd1 {[%clk 0:02:38]}  b5 {[%clk 0:02:35]} 14. Bd3 {[%clk 0:02:34]}  Bb7 {[%clk 0:02:35]} 15. Rac1 {[%clk 0:02:25]}  Qb6 {[%clk 0:02:34]} 16. a3 {[%clk 0:02:19]}  Be7 {[%clk 0:02:33]} 17. b4 {[%clk 0:02:15]}  O-O-O {[%clk 0:02:10]} 18. Nc5 {[%clk 0:02:14]}  Bxc5 {[%clk 0:02:10]} 19. Rxc5 {[%clk 0:02:13]}  Kb8 {[%clk 0:02:11]} 20. Nd2 {[%clk 0:01:59]}  Ne7 {[%clk 0:02:04]} 21. a4 {[%clk 0:01:53]}  bxa4 {[%clk 0:01:46]} 22. Nc4 {[%clk 0:01:36]}  Qxb4 {[%clk 0:01:44]} 23. Ra5 {[%clk 0:01:34]}  Nd5 {[%clk 0:01:11]} 24. Rb1 {[%clk 0:01:33]}  Qe7 {[%clk 0:01:12]} 25. Be4 {[%clk 0:01:12]}  Nc3 {[%clk 0:01:10]} 26. Qd3 {[%clk 0:01:03]}  Nxb1 {[%clk 0:00:20]} 27. Qxb1 {[%clk 0:01:02]}  Rd5 {[%clk 0:00:20]} 28. Rxa4 {[%clk 0:00:58]}  Rc8 {[%clk 0:00:18]} 29. Rb4 {[%clk 0:00:56]}  Ka7 {[%clk 0:00:15]} 30. Nd6 {[%clk 0:00:55]}  Rc7 {[%clk 0:00:10]} 31. Bxd5 {[%clk 0:00:39]}  exd5 {[%clk 0:00:10]} 32. f4 {[%clk 0:00:34]}  f6 {[%clk 0:00:10]} 33. Qe1 {[%clk 0:00:29]}  fxe5 {[%clk 0:00:10]} 34. fxe5 {[%clk 0:00:29]}  Qd7 {[%clk 0:00:05]} 35. Rxd4 {[%clk 0:00:27]}  Qc6 {[%clk 0:00:04]} 36. Rd1 {[%clk 0:00:23]}  Qb6+ {[%clk 0:00:05]} 37. Kh1 {[%clk 0:00:19]}  d4 {[%clk 0:00:06]} 38. Nf5 {[%clk 0:00:17]}  Qc6 {[%clk 0:00:06]} 39. Qe2 {[%clk 0:00:15]}  d3 {[%clk 0:00:06]} 40. Qd2 {[%clk 0:00:10]}  Qd5 {[%clk 0:00:05]} 41. Qf2+ {[%clk 0:00:08]}  Ka8 {[%clk 0:00:05]} 42. Nd6 {[%clk 0:00:08]}  Rc2 {[%clk 0:00:04]} 43. Qf8+ {[%clk 0:00:08]}  Ka7 {[%clk 0:00:04]} 44. Qf1 {[%clk 0:00:01]}  Rxg2 {[%clk 0:00:03]} 0-1


[Site "https://www.chess.com"]

[Event "Titled Tuesday Blitz April 12 Early 2022"]
[White "Sahil, Tickoo"]
[Black "Nguyen Hong Nhung"]
[WhiteFideId "5019710"]
[BlackFideId "12412201"]
[WhiteElo "2099"]
[BlackElo "1758"]
[Result "0-1"]
[Round "05"]
[TimeControl "180+1"]
[Date "2022.04.13"]
[WhiteClock "0:01:08"]
[BlackClock "0:01:15"]

1. e4 {[%clk 0:03:00]}  c5 {[%clk 0:02:59]} 2. Nc3 {[%clk 0:03:00]}  e6 {[%clk 0:03:00]} 3. f4 {[%clk 0:02:53]}  Nc6 {[%clk 0:02:57]} 4. Nf3 {[%clk 0:02:52]}  a6 {[%clk 0:02:55]} 5. a4 {[%clk 0:02:50]}  d5 {[%clk 0:02:49]} 6. exd5 {[%clk 0:02:42]}  exd5 {[%clk 0:02:50]} 7. d4 {[%clk 0:02:42]}  Nf6 {[%clk 0:02:48]} 8. Bd3 {[%clk 0:02:37]}  cxd4 {[%clk 0:02:46]} 9. Ne2 {[%clk 0:02:30]}  Bc5 {[%clk 0:02:45]} 10. h3 {[%clk 0:02:29]}  O-O {[%clk 0:02:44]} 11. O-O {[%clk 0:02:29]}  Re8 {[%clk 0:02:40]} 12. b3 {[%clk 0:02:03]}  Ne4 {[%clk 0:02:24]} 13. Bb2 {[%clk 0:02:01]}  Nc3 {[%clk 0:02:23]} 14. Qd2 {[%clk 0:01:57]}  Nxe2+ {[%clk 0:02:13]} 15. Bxe2 {[%clk 0:01:48]}  Rxe2 {[%clk 0:01:43]} 16. Qd3 {[%clk 0:01:39]}  Re3 {[%clk 0:01:36]} 17. Qd1 {[%clk 0:01:35]}  Bf5 {[%clk 0:01:31]} 18. Kh1 {[%clk 0:01:29]}  d3 {[%clk 0:01:28]} 19. cxd3 {[%clk 0:01:25]}  Rxd3 {[%clk 0:01:29]} 20. Qc1 {[%clk 0:01:19]}  Be3 {[%clk 0:01:24]} 21. Qe1 {[%clk 0:01:15]}  d4 {[%clk 0:01:18]} 22. Ne5 {[%clk 0:01:08]}  Nxe5 {[%clk 0:01:16]} 23. fxe5 {[%clk 0:01:08]}  Be6 {[%clk 0:01:15]} 0-1


[Site "https://www.chess.com"]

[Event "Titled Tuesday Blitz April 12 Early 2022"]
[White "Sapunov, Evgeny"]
[Black "Coto Mederos, Michel"]
[WhiteFideId "4126661"]
[BlackFideId "3508528"]
[WhiteElo "2470"]
[BlackElo "2427"]
[Result "1/2-1/2"]
[Round "05"]
[TimeControl "180+1"]
[Date "2022.04.12"]
[WhiteClock "0:00:07"]
[BlackClock "0:00:10"]

1. c4 {[%clk 0:02:47]}  e6 {[%clk 0:02:55]} 2. Nf3 {[%clk 0:02:46]}  d5 {[%clk 0:02:55]} 3. e3 {[%clk 0:02:46]}  Nf6 {[%clk 0:02:54]} 4. b3 {[%clk 0:02:46]}  c5 {[%clk 0:02:53]} 5. cxd5 {[%clk 0:02:46]}  exd5 {[%clk 0:02:53]} 6. Bb2 {[%clk 0:02:46]}  Nc6 {[%clk 0:02:53]} 7. a3 {[%clk 0:02:45]}  Be7 {[%clk 0:02:52]} 8. d4 {[%clk 0:02:46]}  O-O {[%clk 0:02:50]} 9. Be2 {[%clk 0:02:45]}  b6 {[%clk 0:02:45]} 10. O-O {[%clk 0:02:43]}  Re8 {[%clk 0:02:36]} 11. Nbd2 {[%clk 0:02:20]}  Bb7 {[%clk 0:02:22]} 12. Bd3 {[%clk 0:02:13]}  Rc8 {[%clk 0:02:06]} 13. Qe2 {[%clk 0:02:13]}  Bd6 {[%clk 0:01:53]} 14. Rfd1 {[%clk 0:02:11]}  Ne4 {[%clk 0:01:45]} 15. dxc5 {[%clk 0:01:59]}  bxc5 {[%clk 0:01:29]} 16. Ba6 {[%clk 0:01:46]}  Rb8 {[%clk 0:01:15]} 17. Nxe4 {[%clk 0:01:34]}  dxe4 {[%clk 0:01:13]} 18. Nd2 {[%clk 0:01:29]}  Ne5 {[%clk 0:00:57]} 19. Bxb7 {[%clk 0:01:26]}  Rxb7 {[%clk 0:00:49]} 20. Nxe4 {[%clk 0:01:25]}  Rd7 {[%clk 0:00:37]} 21. h3 {[%clk 0:01:11]}  Bf8 {[%clk 0:00:26]} 22. Rxd7 {[%clk 0:00:58]}  Qxd7 {[%clk 0:00:26]} 23. Rd1 {[%clk 0:00:55]}  Qb7 {[%clk 0:00:27]} 24. Qc2 {[%clk 0:00:53]}  Ng6 {[%clk 0:00:17]} 25. Ng3 {[%clk 0:00:50]}  h6 {[%clk 0:00:14]} 26. Qc4 {[%clk 0:00:44]}  Rb8 {[%clk 0:00:13]} 27. Rd3 {[%clk 0:00:44]}  Qc6 {[%clk 0:00:11]} 28. Nf5 {[%clk 0:00:41]}  Qe8 {[%clk 0:00:07]} 29. Qg4 {[%clk 0:00:35]}  Qe6 {[%clk 0:00:07]} 30. Ng3 {[%clk 0:00:20]}  c4 {[%clk 0:00:07]} 31. Qxe6 {[%clk 0:00:16]}  fxe6 {[%clk 0:00:08]} 32. Rc3 {[%clk 0:00:16]}  cxb3 {[%clk 0:00:08]} 33. Ne4 {[%clk 0:00:15]}  Bxa3 {[%clk 0:00:07]} 34. Bxa3 {[%clk 0:00:14]}  b2 {[%clk 0:00:08]} 35. Bxb2 {[%clk 0:00:14]}  Rxb2 {[%clk 0:00:08]} 36. Ra3 {[%clk 0:00:15]}  Rb7 {[%clk 0:00:07]} 37. Ra6 {[%clk 0:00:13]}  Nf8 {[%clk 0:00:05]} 38. g4 {[%clk 0:00:11]}  Kh7 {[%clk 0:00:05]} 39. Kg2 {[%clk 0:00:11]}  Rc7 {[%clk 0:00:05]} 40. f4 {[%clk 0:00:11]}  Kg6 {[%clk 0:00:05]} 41. Kf3 {[%clk 0:00:11]}  Kf7 {[%clk 0:00:06]} 42. h4 {[%clk 0:00:11]}  Ke7 {[%clk 0:00:06]} 43. h5 {[%clk 0:00:11]}  Nd7 {[%clk 0:00:05]} 44. Nf2 {[%clk 0:00:07]}  Rb7 {[%clk 0:00:06]} 45. Nd3 {[%clk 0:00:07]}  Rc7 {[%clk 0:00:06]} 46. Ra5 {[%clk 0:00:06]}  Rb7 {[%clk 0:00:06]} 47. g5 {[%clk 0:00:06]}  Rc7 {[%clk 0:00:04]} 48. g6 {[%clk 0:00:06]}  Nf6 {[%clk 0:00:03]} 49. Ne5 {[%clk 0:00:05]}  Nxh5 {[%clk 0:00:03]} 50. Rxa7 {[%clk 0:00:04]}  Rxa7 {[%clk 0:00:04]} 51. Nc6+ {[%clk 0:00:05]}  Kf6 {[%clk 0:00:05]} 52. Nxa7 {[%clk 0:00:05]}  Kxg6 {[%clk 0:00:06]} 53. Nc6 {[%clk 0:00:06]}  Nf6 {[%clk 0:00:06]} 54. Ne5+ {[%clk 0:00:06]}  Kf5 {[%clk 0:00:07]} 55. Nd3 {[%clk 0:00:05]}  g5 {[%clk 0:00:07]} 56. fxg5 {[%clk 0:00:05]}  Kxg5 {[%clk 0:00:07]} 57. Nf2 {[%clk 0:00:06]}  h5 {[%clk 0:00:07]} 58. Kg3 {[%clk 0:00:06]}  Kf5 {[%clk 0:00:08]} 59. Kf3 {[%clk 0:00:05]}  e5 {[%clk 0:00:08]} 60. e4+ {[%clk 0:00:05]}  Kg5 {[%clk 0:00:09]} 61. Nd3 {[%clk 0:00:06]}  Ng4 {[%clk 0:00:09]} 62. Kg3 {[%clk 0:00:05]}  h4+ {[%clk 0:00:09]} 63. Kh3 {[%clk 0:00:06]}  Kh5 {[%clk 0:00:09]} 64. Nc5 {[%clk 0:00:06]}  Nf2+ {[%clk 0:00:08]} 65. Kg2 {[%clk 0:00:07]}  Ng4 {[%clk 0:00:09]} 66. Kh3 {[%clk 0:00:07]}  Nf6 {[%clk 0:00:09]} 67. Nd3 {[%clk 0:00:06]}  Kg5 {[%clk 0:00:09]} 68. Nxe5 {[%clk 0:00:06]}  Nxe4 {[%clk 0:00:09]} 69. Nf3+ {[%clk 0:00:06]}  Kf4 {[%clk 0:00:10]} 70. Nxh4 {[%clk 0:00:07]} 1/2-1/2


[Site "https://www.chess.com"]

[Event "Titled Tuesday Blitz April 12 Early 2022"]
[White "Sarana, Alexey"]
[Black "Le, Tuan Minh"]
[WhiteFideId "24133795"]
[BlackFideId "12401153"]
[WhiteElo "2666"]
[BlackElo "2450"]
[Result "1/2-1/2"]
[Round "05"]
[TimeControl "180+1"]
[Date "2022.04.12"]
[WhiteClock "0:00:05"]
[BlackClock "0:00:06"]

1. d4 {[%clk 0:03:00]}  d5 {[%clk 0:03:00]} 2. c4 {[%clk 0:03:01]}  c6 {[%clk 0:03:00]} 3. Nf3 {[%clk 0:03:01]}  Nf6 {[%clk 0:03:01]} 4. Nc3 {[%clk 0:03:02]}  a6 {[%clk 0:03:01]} 5. g3 {[%clk 0:03:02]}  Bf5 {[%clk 0:02:59]} 6. Bg2 {[%clk 0:03:02]}  e6 {[%clk 0:02:59]} 7. Nh4 {[%clk 0:03:01]}  Bg6 {[%clk 0:02:59]} 8. Nxg6 {[%clk 0:03:00]}  hxg6 {[%clk 0:03:00]} 9. Qb3 {[%clk 0:02:59]}  b5 {[%clk 0:02:55]} 10. c5 {[%clk 0:02:57]}  Be7 {[%clk 0:02:46]} 11. a4 {[%clk 0:02:55]}  Nbd7 {[%clk 0:02:44]} 12. O-O {[%clk 0:02:45]}  O-O {[%clk 0:02:43]} 13. Bf4 {[%clk 0:02:43]}  e5 {[%clk 0:02:23]} 14. dxe5 {[%clk 0:02:43]}  Nxc5 {[%clk 0:02:22]} 15. Qc2 {[%clk 0:02:42]}  Nfd7 {[%clk 0:02:22]} 16. Rad1 {[%clk 0:02:08]}  Ne6 {[%clk 0:02:13]} 17. b3 {[%clk 0:01:20]}  Rc8 {[%clk 0:02:03]} 18. axb5 {[%clk 0:01:17]}  axb5 {[%clk 0:02:02]} 19. Qb2 {[%clk 0:01:11]}  Bc5 {[%clk 0:01:04]} 20. e4 {[%clk 0:01:05]}  d4 {[%clk 0:01:02]} 21. Ne2 {[%clk 0:01:05]}  g5 {[%clk 0:01:02]} 22. Bc1 {[%clk 0:00:58]}  Nxe5 {[%clk 0:01:02]} 23. Be3 {[%clk 0:00:53]}  Qf6 {[%clk 0:00:27]} 24. Nxd4 {[%clk 0:00:52]}  Ng4 {[%clk 0:00:27]} 25. b4 {[%clk 0:00:45]}  Bb6 {[%clk 0:00:20]} 26. Qe2 {[%clk 0:00:32]}  Nxe3 {[%clk 0:00:17]} 27. fxe3 {[%clk 0:00:33]}  Nxd4 {[%clk 0:00:10]} 28. exd4 {[%clk 0:00:30]}  Qe7 {[%clk 0:00:10]} 29. Kh1 {[%clk 0:00:20]}  Qxb4 {[%clk 0:00:11]} 30. d5 {[%clk 0:00:20]}  cxd5 {[%clk 0:00:11]} 31. Rxd5 {[%clk 0:00:21]}  Qc4 {[%clk 0:00:11]} 32. Qh5 {[%clk 0:00:16]}  Rc5 {[%clk 0:00:10]} 33. Rd6 {[%clk 0:00:11]}  Rc6 {[%clk 0:00:08]} 34. Rd5 {[%clk 0:00:09]}  Rh6 {[%clk 0:00:08]} 35. Qxg5 {[%clk 0:00:09]}  Rg6 {[%clk 0:00:08]} 36. Qh5 {[%clk 0:00:09]}  b4 {[%clk 0:00:08]} 37. Rb5 {[%clk 0:00:09]}  Bc7 {[%clk 0:00:07]} 38. Rb7 {[%clk 0:00:08]}  Bd6 {[%clk 0:00:06]} 39. Qd5 {[%clk 0:00:08]}  Qxd5 {[%clk 0:00:06]} 40. exd5 {[%clk 0:00:09]}  Rh6 {[%clk 0:00:07]} 41. Rf3 {[%clk 0:00:06]}  g5 {[%clk 0:00:06]} 42. Rf5 {[%clk 0:00:04]}  g4 {[%clk 0:00:05]} 43. Rg5+ {[%clk 0:00:04]}  Rg6 {[%clk 0:00:05]} 44. Rxg6+ {[%clk 0:00:04]}  fxg6 {[%clk 0:00:06]} 45. Be4 {[%clk 0:00:04]}  Bc5 {[%clk 0:00:07]} 46. h4 {[%clk 0:00:03]}  gxh3 {[%clk 0:00:04]} 47. Bxg6 {[%clk 0:00:02]}  Rf2 {[%clk 0:00:04]} 48. d6 {[%clk 0:00:02]}  Bxd6 {[%clk 0:00:04]} 49. Rb6 {[%clk 0:00:01]}  Bxg3 {[%clk 0:00:03]} 50. Bd3 {[%clk 0:00:02]}  Kf8 {[%clk 0:00:02]} 51. Rxb4 {[%clk 0:00:01]}  Be5 {[%clk 0:00:03]} 52. Rb5 {[%clk 0:00:01]}  Bd6 {[%clk 0:00:03]} 53. Rf5+ {[%clk 0:00:02]}  Rxf5 {[%clk 0:00:04]} 54. Bxf5 {[%clk 0:00:03]}  h2 {[%clk 0:00:04]} 55. Be4 {[%clk 0:00:03]}  Ke7 {[%clk 0:00:05]} 56. Bg2 {[%clk 0:00:04]}  Kf6 {[%clk 0:00:06]} 57. Bd5 {[%clk 0:00:05]} 1/2-1/2


[Site "https://www.chess.com"]

[Event "Titled Tuesday Blitz April 12 Early 2022"]
[White "Secheres, Adrian-Simion"]
[Black "Nakamura, Hikaru"]
[WhiteFideId "1217445"]
[BlackFideId "2016192"]
[WhiteElo "2277"]
[BlackElo "2850"]
[Result "0-1"]
[Round "05"]
[TimeControl "180+1"]
[Date "2022.04.12"]
[WhiteClock "0:00:03"]
[BlackClock "0:02:05"]

1. d4 {[%clk 0:03:00]}  g6 {[%clk 0:03:00]} 2. c4 {[%clk 0:02:59]}  Bg7 {[%clk 0:02:59]} 3. e4 {[%clk 0:03:00]}  d6 {[%clk 0:02:58]} 4. Nc3 {[%clk 0:02:59]}  Nc6 {[%clk 0:02:53]} 5. Nge2 {[%clk 0:02:59]}  e5 {[%clk 0:02:53]} 6. d5 {[%clk 0:02:58]}  Nce7 {[%clk 0:02:52]} 7. h4 {[%clk 0:02:45]}  f5 {[%clk 0:02:49]} 8. h5 {[%clk 0:02:43]}  f4 {[%clk 0:02:47]} 9. Qc2 {[%clk 0:02:31]}  g5 {[%clk 0:02:47]} 10. f3 {[%clk 0:02:26]}  h6 {[%clk 0:02:45]} 11. Bd2 {[%clk 0:02:26]}  g4 {[%clk 0:02:42]} 12. O-O-O {[%clk 0:01:51]}  Nf6 {[%clk 0:02:42]} 13. Kb1 {[%clk 0:01:50]}  O-O {[%clk 0:02:41]} 14. Rc1 {[%clk 0:01:46]}  b6 {[%clk 0:02:40]} 15. Ng1 {[%clk 0:01:24]}  g3 {[%clk 0:02:40]} 16. Bd3 {[%clk 0:01:23]}  Bd7 {[%clk 0:02:35]} 17. Nge2 {[%clk 0:01:18]}  Qe8 {[%clk 0:02:36]} 18. Nb5 {[%clk 0:01:12]}  Qd8 {[%clk 0:02:30]} 19. b4 {[%clk 0:01:07]}  a6 {[%clk 0:02:28]} 20. Na3 {[%clk 0:01:01]}  a5 {[%clk 0:02:29]} 21. bxa5 {[%clk 0:00:59]}  Be8 {[%clk 0:02:29]} 22. Nb5 {[%clk 0:00:50]}  Nxh5 {[%clk 0:02:20]} 23. axb6 {[%clk 0:00:49]}  cxb6 {[%clk 0:02:21]} 24. Bb4 {[%clk 0:00:48]}  Nc8 {[%clk 0:02:21]} 25. Nec3 {[%clk 0:00:44]}  Nf6 {[%clk 0:02:21]} 26. a4 {[%clk 0:00:42]}  Rf7 {[%clk 0:02:21]} 27. Qb3 {[%clk 0:00:41]}  Bf8 {[%clk 0:02:21]} 28. Kb2 {[%clk 0:00:40]}  Nd7 {[%clk 0:02:20]} 29. Ra1 {[%clk 0:00:40]}  Nc5 {[%clk 0:02:20]} 30. Bxc5 {[%clk 0:00:41]}  bxc5 {[%clk 0:02:20]} 31. a5 {[%clk 0:00:38]}  Rxa5 {[%clk 0:02:15]} 32. Rxa5 {[%clk 0:00:39]}  Qxa5 {[%clk 0:02:15]} 33. Ra1 {[%clk 0:00:39]}  Qd8 {[%clk 0:02:15]} 34. Ra8 {[%clk 0:00:36]}  Rb7 {[%clk 0:02:14]} 35. Qa3 {[%clk 0:00:31]}  Bd7 {[%clk 0:02:14]} 36. Qa6 {[%clk 0:00:20]}  Qb6 {[%clk 0:02:14]} 37. Qxb6 {[%clk 0:00:19]}  Nxb6 {[%clk 0:02:12]} 38. Ra6 {[%clk 0:00:07]}  h5 {[%clk 0:02:12]} 39. Kc2 {[%clk 0:00:07]}  h4 {[%clk 0:02:12]} 40. Bf1 {[%clk 0:00:07]}  Bc8 {[%clk 0:02:07]} 41. Ra5 {[%clk 0:00:05]}  Rg7 {[%clk 0:02:05]} 42. Ra1 {[%clk 0:00:03]}  h3 {[%clk 0:02:05]} 0-1


[Site "https://www.chess.com"]

[Event "Titled Tuesday Blitz April 12 Early 2022"]
[White "Shimanov, Aleksandr"]
[Black "Martinez Alcantara, Jose Eduardo"]
[WhiteFideId "4198603"]
[BlackFideId "3805662"]
[WhiteElo "2636"]
[BlackElo "2690"]
[Result "1-0"]
[Round "05"]
[TimeControl "180+1"]
[Date "2022.04.12"]
[WhiteClock "0:00:04"]
[BlackClock "0:00:04"]

1. d4 {[%clk 0:03:00]}  Nf6 {[%clk 0:03:00]} 2. Nc3 {[%clk 0:03:00]}  e6 {[%clk 0:03:00]} 3. e4 {[%clk 0:02:52]}  d5 {[%clk 0:03:01]} 4. e5 {[%clk 0:02:45]}  Nfd7 {[%clk 0:03:01]} 5. Nce2 {[%clk 0:02:39]}  c5 {[%clk 0:03:01]} 6. c3 {[%clk 0:02:40]}  Nc6 {[%clk 0:03:02]} 7. Nf3 {[%clk 0:02:40]}  Be7 {[%clk 0:03:03]} 8. h4 {[%clk 0:02:32]}  Qa5 {[%clk 0:02:57]} 9. Bd2 {[%clk 0:02:19]}  Qb6 {[%clk 0:02:41]} 10. Rb1 {[%clk 0:02:14]}  a5 {[%clk 0:02:40]} 11. h5 {[%clk 0:02:08]}  h6 {[%clk 0:02:39]} 12. g4 {[%clk 0:02:06]}  a4 {[%clk 0:02:38]} 13. a3 {[%clk 0:01:55]}  Qa7 {[%clk 0:02:33]} 14. Be3 {[%clk 0:01:54]}  Nb6 {[%clk 0:02:30]} 15. Nf4 {[%clk 0:01:50]}  Qa5 {[%clk 0:02:24]} 16. Qd2 {[%clk 0:01:45]}  cxd4 {[%clk 0:02:13]} 17. cxd4 {[%clk 0:01:42]}  Nc4 {[%clk 0:02:13]} 18. Qxa5 {[%clk 0:01:33]}  N6xa5 {[%clk 0:02:10]} 19. Nd2 {[%clk 0:01:24]}  b5 {[%clk 0:02:06]} 20. Nd3 {[%clk 0:01:19]}  Nc6 {[%clk 0:02:01]} 21. Nf3 {[%clk 0:01:05]}  Rb8 {[%clk 0:01:58]} 22. Bd2 {[%clk 0:01:04]}  b4 {[%clk 0:01:44]} 23. Bxb4 {[%clk 0:01:01]}  Nxb4 {[%clk 0:01:44]} 24. axb4 {[%clk 0:01:00]}  Bxb4+ {[%clk 0:01:45]} 25. Nxb4 {[%clk 0:01:00]}  Rxb4 {[%clk 0:01:46]} 26. Bxc4 {[%clk 0:01:01]}  dxc4 {[%clk 0:01:45]} 27. Nd2 {[%clk 0:00:58]}  Ke7 {[%clk 0:01:35]} 28. Ke2 {[%clk 0:00:57]}  Bb7 {[%clk 0:01:31]} 29. Rhc1 {[%clk 0:00:55]}  Bd5 {[%clk 0:01:27]} 30. Ke3 {[%clk 0:00:50]}  Rhb8 {[%clk 0:01:27]} 31. Ra1 {[%clk 0:00:51]}  f6 {[%clk 0:01:20]} 32. f4 {[%clk 0:00:48]}  Kf7 {[%clk 0:01:04]} 33. Rc3 {[%clk 0:00:43]}  R8b7 {[%clk 0:01:00]} 34. Raa3 {[%clk 0:00:40]}  g6 {[%clk 0:00:56]} 35. hxg6+ {[%clk 0:00:37]}  Kxg6 {[%clk 0:00:57]} 36. exf6 {[%clk 0:00:37]}  Kxf6 {[%clk 0:00:57]} 37. Ne4+ {[%clk 0:00:33]}  Kg7 {[%clk 0:00:54]} 38. Nc5 {[%clk 0:00:32]}  Ra7 {[%clk 0:00:51]} 39. Rc2 {[%clk 0:00:32]}  Kh7 {[%clk 0:00:48]} 40. Rh2 {[%clk 0:00:31]}  Kg7 {[%clk 0:00:48]} 41. Rf2 {[%clk 0:00:30]}  Ra8 {[%clk 0:00:48]} 42. Rh2 {[%clk 0:00:29]}  Kg6 {[%clk 0:00:44]} 43. Ra1 {[%clk 0:00:25]}  Rab8 {[%clk 0:00:39]} 44. Rxa4 {[%clk 0:00:22]}  Rxb2 {[%clk 0:00:35]} 45. Rxb2 {[%clk 0:00:21]}  Rxb2 {[%clk 0:00:36]} 46. Ra6 {[%clk 0:00:20]}  Kf7 {[%clk 0:00:32]} 47. f5 {[%clk 0:00:20]}  exf5 {[%clk 0:00:33]} 48. gxf5 {[%clk 0:00:21]}  c3 {[%clk 0:00:31]} 49. Rxh6 {[%clk 0:00:15]}  Rg2 {[%clk 0:00:31]} 50. Rh7+ {[%clk 0:00:10]}  Kg8 {[%clk 0:00:29]} 51. Rc7 {[%clk 0:00:10]}  Rg3+ {[%clk 0:00:19]} 52. Kf4 {[%clk 0:00:09]}  Rg1 {[%clk 0:00:14]} 53. Ke5 {[%clk 0:00:09]}  Bc4 {[%clk 0:00:11]} 54. Ne4 {[%clk 0:00:05]}  c2 {[%clk 0:00:12]} 55. Nf6+ {[%clk 0:00:05]}  Kf8 {[%clk 0:00:11]} 56. Rxc4 {[%clk 0:00:03]}  Re1+ {[%clk 0:00:09]} 57. Ne4 {[%clk 0:00:03]}  c1=Q {[%clk 0:00:10]} 58. Rxc1 {[%clk 0:00:03]}  Rxc1 {[%clk 0:00:11]} 59. d5 {[%clk 0:00:04]}  Re1 {[%clk 0:00:11]} 60. d6 {[%clk 0:00:04]}  Ke8 {[%clk 0:00:09]} 61. Kd5 {[%clk 0:00:04]}  Rd1+ {[%clk 0:00:08]} 62. Ke6 {[%clk 0:00:04]}  Re1 {[%clk 0:00:08]} 63. Ke5 {[%clk 0:00:05]}  Kd7 {[%clk 0:00:08]} 64. f6 {[%clk 0:00:05]}  Ke8 {[%clk 0:00:07]} 65. Kf5 {[%clk 0:00:05]}  Rd1 {[%clk 0:00:02]} 66. Ke6 {[%clk 0:00:05]}  Re1 {[%clk 0:00:02]} 67. Kf5 {[%clk 0:00:05]}  Rd1 {[%clk 0:00:02]} 68. Ke6 {[%clk 0:00:03]}  Re1 {[%clk 0:00:03]} 69. f7+ {[%clk 0:00:03]}  Kf8 {[%clk 0:00:03]} 70. d7 {[%clk 0:00:03]}  Rd1 {[%clk 0:00:03]} 71. Nd6 {[%clk 0:00:03]}  Re1+ {[%clk 0:00:04]} 72. Kd5 {[%clk 0:00:03]}  Ke7 {[%clk 0:00:02]} 73. f8=Q+ {[%clk 0:00:03]}  Kxf8 {[%clk 0:00:02]} 74. d8=Q+ {[%clk 0:00:03]}  Kg7 {[%clk 0:00:03]} 75. Qg5+ {[%clk 0:00:03]}  Kh7 {[%clk 0:00:04]} 76. Qh4+ {[%clk 0:00:04]} 1-0


[Site "https://www.chess.com"]

[Event "Titled Tuesday Blitz April 12 Early 2022"]
[White "Skuhala, Barbara"]
[Black "Bach, Ngoc Thuy Duong"]
[WhiteFideId "14605465"]
[BlackFideId "12408956"]
[WhiteElo "2155"]
[BlackElo "1862"]
[Result "0-1"]
[Round "05"]
[TimeControl "180+1"]
[Date "2022.04.13"]
[WhiteClock "0:01:47"]
[BlackClock "0:01:09"]

1. e4 {[%clk 0:03:00]}  c5 {[%clk 0:02:57]} 2. Nf3 {[%clk 0:02:59]}  d6 {[%clk 0:02:57]} 3. d4 {[%clk 0:02:59]}  cxd4 {[%clk 0:02:58]} 4. Nxd4 {[%clk 0:03:00]}  Nf6 {[%clk 0:02:59]} 5. Nc3 {[%clk 0:02:59]}  a6 {[%clk 0:03:00]} 6. f3 {[%clk 0:02:58]}  e5 {[%clk 0:02:55]} 7. Nb3 {[%clk 0:02:57]}  Be6 {[%clk 0:02:55]} 8. Be3 {[%clk 0:02:57]}  Qc7 {[%clk 0:02:55]} 9. Qd2 {[%clk 0:02:57]}  Nbd7 {[%clk 0:02:55]} 10. O-O-O {[%clk 0:02:57]}  Be7 {[%clk 0:02:56]} 11. Kb1 {[%clk 0:02:57]}  O-O {[%clk 0:02:56]} 12. g4 {[%clk 0:02:57]}  b5 {[%clk 0:02:56]} 13. h4 {[%clk 0:02:57]}  Nb6 {[%clk 0:02:56]} 14. h5 {[%clk 0:02:55]}  Nc4 {[%clk 0:02:54]} 15. Bxc4 {[%clk 0:02:54]}  bxc4 {[%clk 0:02:55]} 16. Nc1 {[%clk 0:02:53]}  Rab8 {[%clk 0:02:55]} 17. g5 {[%clk 0:02:53]}  Nd7 {[%clk 0:02:49]} 18. g6 {[%clk 0:02:51]}  Nc5 {[%clk 0:02:28]} 19. Bxc5 {[%clk 0:02:49]}  Qxc5 {[%clk 0:02:28]} 20. h6 {[%clk 0:02:47]}  fxg6 {[%clk 0:02:20]} 21. hxg7 {[%clk 0:02:47]}  Rf7 {[%clk 0:02:20]} 22. Rdg1 {[%clk 0:02:31]}  Qb4 {[%clk 0:02:11]} 23. b3 {[%clk 0:02:29]}  Rxg7 {[%clk 0:01:57]} 24. Rg2 {[%clk 0:02:22]}  a5 {[%clk 0:01:44]} 25. Nd5 {[%clk 0:02:09]}  Qxd2 {[%clk 0:01:41]} 26. Rxd2 {[%clk 0:02:09]}  Bxd5 {[%clk 0:01:31]} 27. Rxd5 {[%clk 0:02:06]}  a4 {[%clk 0:01:32]} 28. Ra5 {[%clk 0:02:02]}  axb3 {[%clk 0:01:30]} 29. axb3 {[%clk 0:02:02]}  Bg5 {[%clk 0:01:25]} 30. Kb2 {[%clk 0:01:56]}  Bd2 {[%clk 0:01:10]} 31. Rd1 {[%clk 0:01:47]}  Bxa5 {[%clk 0:01:09]} 0-1


[Site "https://www.chess.com"]